fUSD/lending_fUSD_20241215
["ID","MTS","AMOUNT","RATE_DAILY","PERIOD"]
[345435980,1734256259473,-593.2,0.00019996,3]
[345435981,1734256259483,-855.76,0.00019996,3]
[345435982,1734256259493,-500.0,0.00019996,3]
[345435983,1734256259502,-151.0,0.00019996,2]
[345435984,1734256259512,-151.0,0.00019997,2]
[345435985,1734256259523,-500.0,0.00019997,3]
[345435986,1734256259533,-151.0,0.00019997,2]
[345435987,1734256259542,-500.0,0.00019997,3]
[345435988,1734256259551,-500.0,0.00019997,3]
[345435989,1734256259561,-500.0,0.00019997,3]
[345435990,1734256259570,-500.0,0.00019997,3]
[345435991,1734256259580,-500.0,0.00019997,3]
[345435992,1734256259589,-500.0,0.00019997,3]
[345435993,1734256259599,-151.0,0.00019997,2]
[345435994,1734256259608,-500.0,0.00019997,3]
[345435995,1734256259617,-151.0,0.00019997,2]
[345435996,1734256259627,-500.0,0.00019997,3]
[345435997,1734256259636,-500.0,0.00019997,3]
[345435998,1734256259645,-500.0,0.00019997,3]
[345435999,1734256259655,-500.0,0.00019997,3]
[345436000,1734256259664,-500.0,0.00019997,3]
[345436001,1734256259673,-500.0,0.00019997,3]
[345436002,1734256259682,-500.0,0.00019997,3]
[345436003,1734256259692,-500.0,0.00019997,3]
[345436004,1734256259701,-151.0,0.00019997,2]
[345436005,1734256259710,-500.0,0.00019997,3]
[345436006,1734256259719,-70.26633983,0.00019997,3]
[345436007,1734256259953,-429.73366017,0.00019997,3]
[345436008,1734256259963,-500.0,0.00019997,3]
[345436009,1734256259972,-151.0,0.00019997,2]
[345436010,1734256259981,-500.0,0.00019997,3]
[345436011,1734256259990,-500.0,0.00019997,3]
[345436012,1734256259999,-500.0,0.00019997,3]
[345436013,1734256260009,-500.0,0.00019997,3]
[345436014,1734256260019,-500.0,0.00019997,3]
[345436015,1734256260029,-500.0,0.00019997,3]
[345436016,1734256260038,-500.0,0.00019997,3]
[345436017,1734256260047,-500.0,0.00019997,3]
[345436018,1734256260057,-500.0,0.00019997,3]
[345436019,1734256260068,-500.0,0.00019997,3]
[345436020,1734256260077,-500.0,0.00019997,3]
[345436021,1734256260086,-500.0,0.00019997,3]
[345436022,1734256260096,-500.0,0.00019997,3]
[345436023,1734256260105,-500.0,0.00019997,3]
[345436024,1734256260114,-500.0,0.00019997,3]
[345436025,1734256260124,-500.0,0.00019997,3]
[345436026,1734256260133,-500.0,0.00019997,3]
[345436027,1734256260142,-500.0,0.00019997,3]
[345436028,1734256260152,-500.0,0.00019997,3]
[345436029,1734256260161,-500.0,0.00019997,3]
[345436030,1734256260171,-500.0,0.00019997,3]
[345436031,1734256260180,-500.0,0.00019997,3]
[345436032,1734256260189,-481.57064102,0.00019997,3]
[345436033,1734256260199,-500.0,0.00019997,3]
[345436034,1734256260208,-500.0,0.00019997,3]
[345436035,1734256260217,-151.0,0.00019997,2]
[345436036,1734256260227,-500.0,0.00019997,3]
[345436037,1734256260237,-151.0,0.00019997,2]
[345436038,1734256260247,-151.0,0.00019997,2]
[345436039,1734256260256,-500.0,0.00019997,3]
[345436040,1734256260266,-608.81,0.00019997,3]
[345436041,1734256260275,-608.81,0.00019997,3]
[345436042,1734256260284,-500.0,0.00019997,3]
[345436043,1734256260293,-500.0,0.00019997,3]
[345436044,1734256260303,-500.0,0.00019997,3]
[345436045,1734256260312,-500.0,0.00019997,3]
[345436046,1734256260321,-500.0,0.00019997,3]
[345436047,1734256260330,-500.0,0.00019997,3]
[345436048,1734256260339,-500.0,0.00019997,3]
[345436049,1734256260348,-151.0,0.00019997,2]
[345436050,1734256260358,-500.0,0.00019997,3]
[345436051,1734256260367,-500.0,0.00019997,3]
[345436052,1734256260376,-500.0,0.00019997,3]
[345436053,1734256260387,-500.0,0.00019997,3]
[345436054,1734256260398,-500.0,0.00019997,3]
[345436055,1734256260408,-500.0,0.00019997,3]
[345436056,1734256260418,-500.0,0.00019997,3]
[345436057,1734256260427,-739.5,0.00019997,3]
[345436058,1734256260437,-739.5,0.00019997,3]
[345436059,1734256260447,-500.0,0.00019997,3]
[345436060,1734256260456,-846.609208,0.00019997,2]
[345436061,1734256260466,-500.0,0.00019997,3]
[345436062,1734256260476,-846.609208,0.00019997,2]
[345436063,1734256260485,-500.0,0.00019997,3]
[345436064,1734256260495,-500.0,0.00019997,3]
[345436065,1734256260504,-500.0,0.00019997,3]
[345436066,1734256260513,-500.0,0.00019997,3]
[345436067,1734256260527,-500.0,0.00019997,3]
[345436068,1734256260536,-500.0,0.00019997,3]
[345436069,1734256260545,-500.0,0.00019997,3]
[345436070,1734256260554,-500.0,0.00019997,3]
[345436071,1734256260563,-500.0,0.00019997,3]
[345436072,1734256260572,-500.0,0.00019997,3]
[345436073,1734256260580,-500.0,0.00019997,3]
[345436074,1734256260589,-500.0,0.00019997,2]
[345436075,1734256260599,-500.0,0.00019997,3]
[345436076,1734256260609,-500.0,0.00019997,3]
[345436077,1734256260620,-500.0,0.00019997,3]
[345436078,1734256260630,-500.0,0.00019997,3]
[345436079,1734256260640,-500.0,0.00019997,3]
[345436080,1734256260650,-151.0,0.00019997,2]
[345436081,1734256260659,-500.0,0.00019997,3]
[345436082,1734256260671,-500.0,0.00019997,3]
[345436083,1734256260681,-500.0,0.00019997,3]
[345436084,1734256260690,-500.0,0.00019997,3]
[345436085,1734256260699,-500.0,0.00019997,3]
[345436086,1734256260707,-500.0,0.00019997,3]
[345436087,1734256260717,-151.0,0.00019997,2]
[345436088,1734256260726,-500.0,0.00019997,3]
[345436089,1734256260735,-151.0,0.00019997,2]
[345436090,1734256260744,-500.0,0.00019997,3]
[345436091,1734256260754,-500.0,0.00019997,3]
[345436092,1734256260763,-500.0,0.00019997,3]
[345436093,1734256260773,-500.0,0.00019997,3]
[345436094,1734256260783,-612.12393365,0.00019997,3]
[345436095,1734256260792,-500.0,0.00019997,3]
[345436096,1734256260802,-500.0,0.00019997,3]
[345436097,1734256260811,-500.0,0.00019997,3]
[345436098,1734256260820,-500.0,0.00019997,3]
[345436099,1734256260829,-500.0,0.00019997,3]
[345436100,1734256260838,-500.0,0.00019997,3]
[345436101,1734256260848,-500.0,0.00019997,3]
[345436102,1734256260857,-154.599793,0.00019997,2]
[345436103,1734256260866,-500.0,0.00019997,3]
[345436104,1734256260875,-500.0,0.00019997,3]
[345436105,1734256260884,-500.0,0.00019997,3]
[345436106,1734256260894,-500.0,0.00019997,3]
[345436107,1734256260903,-500.0,0.00019997,3]
[345436108,1734256260912,-500.0,0.00019997,3]
[345436109,1734256260921,-500.0,0.00019997,3]
[345436110,1734256260930,-500.0,0.00019997,3]
[345436111,1734256260939,-500.0,0.00019997,3]
[345436112,1734256260948,-500.0,0.00019997,3]
[345436113,1734256260956,-500.0,0.00019997,3]
[345436114,1734256260965,-500.0,0.00019997,3]
[345436115,1734256260974,-500.0,0.00019997,3]
[345436116,1734256260983,-730.08,0.00019997,3]
[345436117,1734256260992,-730.08,0.00019997,3]
[345436118,1734256261001,-500.0,0.00019997,3]
[345436119,1734256261010,-500.0,0.00019997,3]
[345436120,1734256261021,-500.0,0.00019997,3]
[345436121,1734256261029,-500.0,0.00019997,3]
[345436122,1734256261038,-500.0,0.00019997,3]
[345436123,1734256261047,-500.0,0.00019997,3]
[345436124,1734256261057,-151.0,0.00019997,2]
[345436125,1734256261066,-500.0,0.00019997,3]
[345436126,1734256261075,-500.0,0.00019997,3]
[345436127,1734256261083,-500.0,0.00019997,3]
[345436128,1734256261092,-500.0,0.00019997,3]
[345436129,1734256261101,-500.0,0.00019997,3]
[345436130,1734256261110,-489.0148476,0.00019997,3]
[345436131,1734256261119,-500.0,0.00019997,3]
[345436132,1734256261129,-500.0,0.00019997,3]
[345436133,1734256261138,-500.0,0.00019997,3]
[345436134,1734256261146,-151.0,0.00019997,2]
[345436135,1734256261155,-700.07,0.00019997,3]
[345436136,1734256261164,-700.07,0.00019997,3]
[345436137,1734256261173,-500.0,0.00019997,3]
[345436138,1734256261181,-369.12,0.00019997,3]
[345436139,1734256261190,-500.0,0.00019997,3]
[345436140,1734256261199,-500.0,0.00019997,3]
[345436141,1734256261208,-500.0,0.00019997,3]
[345436142,1734256261217,-500.0,0.00019997,3]
[345436143,1734256261226,-500.0,0.00019997,3]
[345436144,1734256261235,-500.0,0.00019997,3]
[345436145,1734256261243,-500.0,0.00019997,3]
[345436146,1734256261252,-500.0,0.00019997,3]
[345436147,1734256261261,-500.0,0.00019997,3]
[345436148,1734256261271,-500.0,0.00019997,3]
[345436149,1734256261280,-500.0,0.00019997,3]
[345436150,1734256261289,-500.0,0.00019997,3]
[345436151,1734256261298,-188.55595,0.00019997,2]
[345436152,1734256261307,-500.0,0.00019997,3]
[345436153,1734256261316,-500.0,0.00019997,3]
[345436154,1734256261324,-33.65334838,0.00019997,3]
[345436155,1734256539648,163.85,0.00018805,30]
[345436156,1734256652815,165.19,0.00013699,2]
[345436161,1734256866051,5895.40251292,0.00014989,2]
[345436162,1734256906227,3161.93770748,0.00014989,2]
[345436165,1734257046564,159.51,0.00010137,2]
[345436166,1734257102051,199.17472645,0.00014989,2]
[345436167,1734257254798,450.0,0.00013,2]
[345436168,1734257256054,500.0,0.00015,2]
[345436169,1734257318980,27777.7314153,0.00013695,2]
[345436170,1734257359515,164.78,0.00014497,2]
[345436171,1734257417512,199.17472643,0.00014989,2]
[345436173,1734257431479,-500.0,0.00015089,2]
[345436174,1734257431489,-500.0,0.00015089,2]
[345436175,1734257431498,-500.0,0.00015089,2]
[345436176,1734257431508,-500.0,0.00015089,2]
[345436177,1734257431517,-500.0,0.00015089,2]
[345436178,1734257431526,-871.33,0.00016271,2]
[345436179,1734257431535,-153.0,0.00016807,2]
[345436180,1734257431545,-153.0,0.00016807,2]
[345436181,1734257431554,-153.0,0.00016807,2]
[345436182,1734257431563,-153.0,0.00016807,2]
[345436183,1734257431572,-153.0,0.00016807,2]
[345436184,1734257431581,-153.0,0.00016807,2]
[345436185,1734257431590,-153.0,0.00016807,2]
[345436186,1734257431599,-153.0,0.00016807,2]
[345436187,1734257431609,-153.0,0.00016807,2]
[345436188,1734257431618,-153.0,0.00016807,2]
[345436189,1734257431627,-153.0,0.00016807,2]
[345436190,1734257431637,-153.0,0.00016807,2]
[345436191,1734257431646,-153.0,0.00016807,2]
[345436192,1734257431656,-153.0,0.00016807,2]
[345436193,1734257431665,-153.0,0.00016807,2]
[345436194,1734257431675,-153.0,0.00016807,2]
[345436195,1734257431684,-153.0,0.00016807,2]
[345436196,1734257431693,-153.0,0.00016807,2]
[345436197,1734257431703,-153.0,0.00016807,2]
[345436198,1734257431712,-153.0,0.00016807,2]
[345436199,1734257431721,-153.0,0.00016807,2]
[345436200,1734257431733,-153.0,0.00016807,2]
[345436201,1734257431742,-153.0,0.00016807,2]
[345436202,1734257431751,-153.0,0.00016807,2]
[345436203,1734257431760,-153.0,0.00016807,2]
[345436204,1734257431769,-153.0,0.00016811,2]
[345436205,1734257431778,-153.0,0.00016811,2]
[345436206,1734257431787,-153.0,0.00016811,2]
[345436207,1734257431797,-153.0,0.00016811,2]
[345436208,1734257431806,-153.0,0.00016811,2]
[345436209,1734257431815,-153.0,0.00016811,2]
[345436210,1734257431825,-153.0,0.00016811,2]
[345436211,1734257431834,-153.0,0.00016811,2]
[345436212,1734257431843,-153.0,0.00016811,2]
[345436213,1734257431852,-153.0,0.00016811,2]
[345436214,1734257431861,-153.0,0.00016811,2]
[345436215,1734257431871,-153.0,0.00016811,2]
[345436216,1734257431879,-153.0,0.00016811,2]
[345436217,1734257431889,-153.0,0.00016811,2]
[345436218,1734257431898,-153.0,0.00016811,2]
[345436219,1734257431907,-153.0,0.00016811,2]
[345436220,1734257431916,-153.0,0.00016811,2]
[345436221,1734257431925,-153.0,0.00016811,2]
[345436222,1734257431934,-153.0,0.00016811,2]
[345436223,1734257431943,-550.0,0.00017,2]
[345436224,1734257431952,-153.151765,0.0001738,2]
[345436225,1734257431962,-900.0,0.00017568,2]
[345436226,1734257431971,-150.39845757,0.00017975,2]
[345436227,1734257431982,-16719.52,0.00018121,2]
[345436228,1734257431991,-163.11,0.00018139,2]
[345436229,1734257432000,-181.38,0.00018232,2]
[345436230,1734257432009,-165.0,0.00018296,2]
[345436231,1734257432017,-199.17472643,0.00018324,2]
[345436232,1734257432026,-500.0,0.00018354,2]
[345436233,1734257432036,-23900.0,0.00018362,2]
[345436234,1734257432045,-1000.0,0.00018424,2]
[345436235,1734257432054,-1500.0,0.00018459,2]
[345436236,1734257432063,-250.0,0.00018515,2]
[345436237,1734257432072,-150.0,0.00018531,2]
[345436238,1734257432081,-871.33,0.00018535,2]
[345436239,1734257432090,-1126.32,0.00018543,2]
[345436240,1734257432100,-250.0,0.00018568,2]
[345436241,1734257432109,-409.71,0.00018632,2]
[345436242,1734257432118,-500.0,0.00018664,2]
[345436243,1734257432127,-900.0,0.00018664,2]
[345436244,1734257432136,-255.22,0.00018736,2]
[345436245,1734257432146,-250.0,0.00018782,2]
[345436246,1734257432155,-252.41,0.00019,2]
[345436247,1734257432164,-374.06,0.00019,2]
[345436248,1734257432173,-600.0,0.00019,2]
[345436249,1734257432182,-34702.0,0.00019303,2]
[345436250,1734257432191,-220.0,0.00019395,2]
[345436251,1734257432202,-3158.0121,0.000194,2]
[345436252,1734257432211,-1000.0,0.000194,2]
[345436253,1734257432220,-2689.697,0.000194,2]
[345436254,1734257432230,-2520.9625,0.000194,2]
[345436255,1734257432239,-1288.705,0.00019605,2]
[345436256,1734257432249,-163.19,0.00019605,2]
[345436257,1734257432258,-150.0,0.00019725,2]
[345436258,1734257432267,-150.0,0.00019726,2]
[345436259,1734257432277,-150.0,0.00019726,2]
[345436260,1734257432286,-150.0,0.00019729,2]
[345436261,1734257432296,-150.0,0.00019731,2]
[345436262,1734257432305,-150.0,0.00019736,2]
[345436263,1734257432317,-150.0,0.00019736,2]
[345436264,1734257432326,-150.0,0.00019745,2]
[345436265,1734257432335,-150.0,0.00019745,2]
[345436266,1734257432345,-150.0,0.00019752,2]
[345436267,1734257432355,-150.0,0.00019753,2]
[345436268,1734257432364,-900.0,0.0001976,2]
[345436269,1734257432373,-150.0,0.00019762,2]
[345436270,1734257432382,-150.0,0.00019762,2]
[345436271,1734257432392,-28.19732609,0.00019767,2]
[345436272,1734257432410,-121.80267391,0.00019767,2]
[345436273,1734257432419,-150.0,0.00019769,2]
[345436274,1734257432428,-150.0,0.00019777,2]
[345436275,1734257432437,-99.7607402,0.00019778,2]
[345436276,1734257432448,-50.2392598,0.00019778,2]
[345436277,1734257432457,-150.0,0.00019779,2]
[345436278,1734257432466,-150.0,0.00019785,2]
[345436279,1734257432475,-150.0,0.00019787,2]
[345436280,1734257432487,-150.0,0.00019787,2]
[345436281,1734257432496,-150.0,0.00019792,2]
[345436282,1734257432505,-500.0,0.00019792,3]
[345436283,1734257432514,-1280.63,0.00019792,3]
[345436284,1734257432523,-500.0,0.00019792,3]
[345436285,1734257432532,-500.0,0.00019792,3]
[345436286,1734257432542,-532.54,0.00019792,3]
[345436287,1734257432551,-773.47,0.00019792,3]
[345436288,1734257432561,-6099.67405952,0.00019792,3]
[345436289,1734257432572,-2340.90594048,0.00019792,3]
[345436290,1734257432582,-500.0,0.00019792,3]
[345436291,1734257432591,-170.82782222,0.00019792,3]
[345436292,1734257432600,-465.28,0.00019792,3]
[345436293,1734257432609,-500.0,0.00019792,3]
[345436294,1734257432618,-1280.63,0.00019792,3]
[345436295,1734257432628,-500.0,0.00019792,3]
[345436296,1734257432637,-500.0,0.00019792,3]
[345436297,1734257432647,-500.0,0.00019792,3]
[345436298,1734257432656,-500.0,0.00019792,3]
[345436299,1734257432665,-500.0,0.00019792,3]
[345436300,1734257432675,-608.2,0.00019792,3]
[345436301,1734257432684,-729.45,0.00019792,3]
[345436302,1734257432694,-500.0,0.00019792,3]
[345436303,1734257432703,-500.0,0.00019792,3]
[345436304,1734257432712,-373.5062373,0.00019792,3]
[345436305,1734257432724,-971.7237627,0.00019792,3]
[345436306,1734257432735,-917.91,0.00019792,3]
[345436307,1734257432744,-500.0,0.00019792,3]
[345436308,1734257432754,-500.0,0.00019792,3]
[345436309,1734257432763,-500.0,0.00019792,3]
[345436310,1734257432772,-500.0,0.00019792,3]
[345436311,1734257432782,-500.0,0.00019792,3]
[345436312,1734257432791,-1061.43,0.00019792,3]
[345436313,1734257432800,-500.0,0.00019792,3]
[345436314,1734257432810,-500.0,0.00019792,3]
[345436315,1734257432819,-500.0,0.00019792,3]
[345436316,1734257432828,-431.3129623,0.00019792,3]
[345436317,1734257432840,-68.6870377,0.00019792,3]
[345436318,1734257432849,-1445.05,0.00019792,3]
[345436319,1734257432859,-500.0,0.00019792,3]
[345436320,1734257432868,-620.42,0.00019792,3]
[345436321,1734257432876,-500.0,0.00019792,3]
[345436322,1734257432886,-500.0,0.00019792,3]
[345436323,1734257432895,-574.77,0.00019792,3]
[345436324,1734257432904,-500.0,0.00019792,3]
[345436325,1734257432913,-500.0,0.00019792,3]
[345436326,1734257432922,-500.0,0.00019792,3]
[345436327,1734257432931,-418.3009623,0.00019792,3]
[345436328,1734257432943,-81.6990377,0.00019792,3]
[345436329,1734257432953,-156.429253,0.00019792,3]
[345436330,1734257432961,-1466.66,0.00019792,3]
[345436331,1734257432971,-500.0,0.00019792,3]
[345436332,1734257432980,-3490.7117093,0.00019792,3]
[345436333,1734257432995,-50.0282907,0.00019792,3]
[345436334,1734257433004,-313.13721049,0.00019792,3]
[345436335,1734257433015,-186.86278951,0.00019792,3]
[345436336,1734257433024,-591.17,0.00019792,3]
[345436337,1734257433034,-244.76721049,0.00019793,2]
[345436338,1734257433049,-1940.85228951,0.00019793,2]
[345436339,1734257433058,-1152.87080109,0.00019793,2]
[345436340,1734257433073,-43010.79713,0.00019793,2]
[345436341,1734257433084,-430.68063875,0.00019793,2]
[345436342,1734257433096,-1535.46963299,0.00019793,2]
[345436360,1734257437385,-150.0,0.00019752,2]
[345436361,1734257437396,-150.0,0.00019752,2]
[345436362,1734257437405,-150.0,0.00019775,2]
[345436363,1734257437415,-150.0,0.00019778,2]
[345436364,1734257437424,-150.0,0.00019778,2]
[345436365,1734257437433,-150.0,0.00019789,2]
[345436366,1734257437443,-500.0,0.00019792,3]
[345436367,1734257437452,-500.0,0.00019792,3]
[345436368,1734257437462,-500.0,0.00019792,3]
[345436369,1734257437472,-5279.71603,0.00019793,2]
[345436370,1734257437495,-150.0,0.00019786,2]
[345436371,1734257437505,-92251.55006717,0.00019793,2]
[345436372,1734257437514,-150.0,0.00019793,2]
[345436373,1734257437523,-675.4484,0.00019794,2]
[345436374,1734257437533,-5000.0,0.00019794,2]
[345436375,1734257437542,-150.0,0.00019795,2]
[345436376,1734257437552,-2920.00001,0.00019796,2]
[345436377,1734257437561,-150.0,0.00019796,2]
[345436378,1734257437571,-150.0,0.00019798,2]
[345436379,1734257437580,-1135.92626204,0.000198,2]
[345436380,1734257437618,-150.0,0.00019764,2]
[345436381,1734257437627,-544.91373796,0.000198,2]
[345436382,1734257437637,-150.0,0.00019804,2]
[345436383,1734257437647,-150.0,0.00019806,2]
[345436384,1734257437656,-150.0,0.00019809,2]
[345436385,1734257437666,-150.0,0.00019812,2]
[345436386,1734257437675,-150.0,0.00019812,2]
[345436387,1734257437684,-150.0,0.00019813,2]
[345436388,1734257437694,-150.0,0.00019814,2]
[345436389,1734257437703,-150.0,0.00019821,2]
[345436390,1734257437713,-150.0,0.00019821,2]
[345436391,1734257437723,-150.0,0.00019823,2]
[345436392,1734257437732,-150.0,0.00019827,2]
[345436393,1734257437742,-150.0,0.00019827,2]
[345436394,1734257437752,-150.0,0.00019831,2]
[345436395,1734257437762,-150.0,0.00019835,2]
[345436396,1734257437771,-500.0,0.00019837,2]
[345436397,1734257437781,-150.0,0.00019843,2]
[345436398,1734257437791,-150.0,0.00019844,2]
[345436399,1734257437801,-150.0,0.00019846,2]
[345436400,1734257437811,-150.0,0.00019846,2]
[345436401,1734257437821,-150.0,0.00019847,2]
[345436402,1734257437831,-150.0,0.0001985,2]
[345436403,1734257437842,-150.0,0.00019851,2]
[345436404,1734257437853,-150.0,0.00019855,2]
[345436405,1734257437862,-150.0,0.00019855,2]
[345436406,1734257437871,-150.0,0.00019857,2]
[345436407,1734257437882,-150.0,0.00019857,2]
[345436408,1734257437891,-150.0,0.00019858,2]
[345436409,1734257437901,-150.0,0.00019858,2]
[345436410,1734257437910,-150.0,0.00019859,2]
[345436411,1734257437920,-150.0,0.00019861,2]
[345436412,1734257437930,-150.0,0.00019862,2]
[345436413,1734257437939,-150.0,0.00019863,2]
[345436414,1734257437949,-150.0,0.00019871,2]
[345436415,1734257437958,-150.0,0.00019873,2]
[345436416,1734257437967,-150.0,0.00019874,2]
[345436417,1734257437976,-150.0,0.00019875,2]
[345436418,1734257437988,-150.0,0.00019878,2]
[345436419,1734257437997,-150.0,0.0001988,2]
[345436420,1734257438007,-150.0,0.00019882,2]
[345436421,1734257438016,-150.0,0.00019888,2]
[345436422,1734257438026,-800.0,0.0001989,2]
[345436423,1734257438036,-150.0,0.00019891,2]
[345436424,1734257438046,-150.0,0.00019892,2]
[345436425,1734257438060,-500.0,0.00019892,3]
[345436426,1734257438082,-500.0,0.00019892,3]
[345436427,1734257438091,-500.0,0.00019892,3]
[345436428,1734257438101,-500.0,0.00019892,3]
[345436429,1734257438110,-861.89,0.00019892,3]
[345436430,1734257438120,-500.0,0.00019892,3]
[345436431,1734257438129,-3492.55,0.00019892,3]
[345436432,1734257438138,-500.0,0.00019892,3]
[345436433,1734257438148,-500.0,0.00019892,3]
[345436434,1734257438157,-500.0,0.00019892,3]
[345436435,1734257438167,-500.0,0.00019892,3]
[345436436,1734257438177,-833.17,0.00019892,3]
[345436437,1734257438186,-500.0,0.00019892,3]
[345436438,1734257438195,-500.0,0.00019892,3]
[345436439,1734257438205,-500.0,0.00019892,3]
[345436440,1734257438214,-500.0,0.00019892,3]
[345436441,1734257438223,-500.0,0.00019892,3]
[345436442,1734257438232,-729.45,0.00019892,3]
[345436443,1734257438242,-500.0,0.00019892,3]
[345436444,1734257438252,-500.0,0.00019892,3]
[345436445,1734257438261,-651.22,0.00019892,3]
[345436446,1734257438270,-500.0,0.00019892,3]
[345436447,1734257438279,-1345.23,0.00019892,3]
[345436448,1734257438289,-500.0,0.00019892,3]
[345436449,1734257438298,-777.2,0.00019892,3]
[345436450,1734257438308,-500.0,0.00019892,3]
[345436451,1734257438321,-500.0,0.00019892,3]
[345436452,1734257438331,-500.0,0.00019892,3]
[345436453,1734257438340,-1737.51,0.00019892,3]
[345436454,1734257438351,-500.0,0.00019892,3]
[345436455,1734257438361,-1061.43,0.00019892,3]
[345436456,1734257438370,-500.0,0.00019892,3]
[345436457,1734257438380,-500.0,0.00019892,3]
[345436458,1734257438394,-2041.63,0.00019892,3]
[345436459,1734257438407,-500.0,0.00019892,3]
[345436460,1734257438418,-500.0,0.00019892,3]
[345436461,1734257438428,-1356.3,0.00019892,3]
[345436462,1734257438438,-500.0,0.00019892,3]
[345436463,1734257438447,-620.42,0.00019892,3]
[345436464,1734257438457,-1090.16,0.00019892,3]
[345436465,1734257438466,-500.0,0.00019892,3]
[345436466,1734257438475,-500.0,0.00019892,3]
[345436467,1734257438484,-574.77,0.00019892,3]
[345436468,1734257438494,-500.0,0.00019892,3]
[345436469,1734257438503,-790.75,0.00019892,3]
[345436470,1734257438513,-500.0,0.00019892,3]
[345436471,1734257438522,-500.0,0.00019892,3]
[345436472,1734257438532,-156.429253,0.00019892,3]
[345436473,1734257438541,-500.0,0.00019892,3]
[345436474,1734257438553,-1466.66,0.00019892,3]
[345436475,1734257438563,-500.0,0.00019892,3]
[345436476,1734257438573,-500.0,0.00019892,3]
[345436477,1734257438582,-500.0,0.00019892,3]
[345436478,1734257438591,-591.17,0.00019892,3]
[345436479,1734257438601,-813.95,0.00019892,3]
[345436480,1734257438611,-500.0,0.00019892,3]
[345436481,1734257438620,-500.0,0.00019892,3]
[345436482,1734257438629,-500.0,0.00019892,3]
[345436483,1734257438638,-500.0,0.00019893,3]
[345436484,1734257438647,-500.0,0.00019893,3]
[345436485,1734257438656,-500.0,0.00019893,3]
[345436486,1734257438665,-179.48,0.00019893,3]
[345436487,1734257438674,-500.0,0.00019893,3]
[345436488,1734257438683,-500.0,0.00019893,3]
[345436489,1734257438693,-500.0,0.00019893,3]
[345436490,1734257438702,-500.0,0.00019893,3]
[345436491,1734257438711,-500.0,0.00019893,3]
[345436492,1734257438720,-500.0,0.00019893,3]
[345436493,1734257438729,-500.0,0.00019893,3]
[345436494,1734257438740,-500.0,0.00019893,3]
[345436495,1734257438749,-500.0,0.00019893,3]
[345436496,1734257438759,-500.0,0.00019893,3]
[345436497,1734257438768,-500.0,0.00019893,3]
[345436498,1734257438777,-500.0,0.00019893,3]
[345436499,1734257438787,-382.83588906,0.00019893,3]
[345436500,1734257438796,-500.0,0.00019893,3]
[345436501,1734257438805,-500.0,0.00019893,3]
[345436502,1734257438814,-500.0,0.00019893,3]
[345436503,1734257438822,-500.0,0.00019893,3]